bitfinex-derivatives/quotes_ETHF0:USTF0_20241024
["timestamp","ask_amount","ask_price","bid_price","bid_amount"]
[1729747997168,0.4036,2554.7,2554.6,0.35264]
[1729747997465,4.3463736,2554.6,2554.5,0.35264]
[1729747997660,4.7499736,2554.7,2554.5,0.35264]
[1729747997863,0.4036,2554.7,2554.5,0.35264]
[1729747998065,4.53323792,2554.6,2554.5,0.35264]
[1729747999172,4.53323792,2554.6,2554.5,3.56044]
[1729748002073,0.4036,2554.7,2554.5,7.1222]
[1729748002271,0.4036,2554.7,2554.6,0.35264]
[1729748005380,0.4036,2554.7,2554.6,0.47517314]
[1729748008285,0.4036,2554.7,2554.6,1.28389414]
[1729748010377,0.4036,2554.7,2554.6,0.47517314]
[1729748010693,0.4036,2554.7,2554.6,1.28389057]
[1729748011889,0.4036,2554.7,2554.6,0.47517297]
[1729748013994,0.4036,2554.7,2554.6,0.47517281]
[1729748014490,0.4036,2554.7,2554.6,1.60442467]
[1729748017585,0.4036,2554.7,2554.6,1.60442397]
[1729748017898,0.4036,2554.7,2554.6,1.60442399]
[1729748019089,0.4036,2554.7,2554.6,2.41313609]
[1729748021096,0.4036,2554.7,2554.6,1.48189186]
[1729748021284,0.4036,2554.7,2554.6,2.41313614]
[1729748023588,0.4036,2554.7,2554.6,2.41314209]
[1729748024887,0.4036,2554.7,2554.6,2.41312914]
[1729748026991,0.4036,2554.7,2554.6,1.60442308]
[1729748028489,0.4036,2554.7,2554.6,1.6044245]
[1729748032098,0.4036,2554.7,2554.6,1.48189186]
[1729748032399,0.4036,2554.7,2554.6,1.60442217]
[1729748032799,0.4329,2554.9,2554.8,0.35261]
[1729748032996,0.4329,2554.9,2554.8,4.81219217]
[1729748033306,1.12925186,2555.0,2554.9,0.35259]
[1729748033597,5.23459608,2555.0,2554.9,0.35259]
[1729748034001,5.23459608,2555.0,2554.9,0.47511102]
[1729748035703,5.23459608,2555.0,2554.9,0.35259]
[1729748035997,5.23459608,2555.0,2554.9,0.47511264]
[1729748039197,5.23459608,2555.0,2554.9,0.35259]
[1729748039399,5.23459608,2555.0,2554.9,0.47511266]
[1729748040293,5.58717608,2555.0,2554.9,0.12252266]
[1729748040603,9.50077608,2555.0,2554.9,0.12252266]
[1729748040806,9.14819608,2555.0,2554.6,3.56043]
[1729748041005,0.35261,2554.8,2554.7,0.12253192]
[1729748041401,4.49646352,2554.8,2554.7,0.12253192]
[1729748041898,5.62571538,2554.8,2554.7,0.12253192]
[1729748042095,9.54011538,2554.8,2554.7,0.12253192]
[1729748042300,9.54011538,2554.8,2554.5,0.35264]
[1729748042301,0.35263,2554.7,2554.5,0.35264]
[1729748042500,1.12925186,2554.6,2554.5,0.35264]
[1729748042701,5.26742982,2554.6,2554.5,0.47518026]
[1729748043096,5.26742982,2554.6,2554.1,1.02332814]
[1729748043296,1.12925186,2554.2,2554.1,4.68975186]
[1729748043504,1.12925186,2554.3,2554.2,0.35269]
[1729748043806,5.42181389,2554.3,2554.2,1.60449751]
[1729748044308,5.82941389,2554.3,2554.2,1.60449751]
[1729748045005,5.82941389,2554.3,2554.2,1.25180751]
[1729748045200,5.82941389,2554.3,2554.2,0.35269]
[1729748045598,6.18210389,2554.3,2554.1,3.2078]
[1729748045799,6.18210389,2554.3,2554.0,0.35271]
[1729748045800,1.12925186,2554.2,2554.0,0.35271]
[1729748046002,0.8191,2554.1,2554.0,0.35271]
[1729748046209,4.96516322,2554.1,2554.0,1.60452527]
[1729748046510,4.96516322,2554.1,2554.0,1.48196186]
[1729748047208,10.36232508,2554.1,2553.6,0.8757]
[1729748047512,1.12925186,2553.9,2553.7,1.48200186]
[1729748047906,4.70425683,2553.8,2553.7,1.48200186]
[1729748050306,4.70425683,2553.8,2553.7,4.68980186]
[1729748050718,4.30195683,2553.8,2553.7,4.68980186]
[1729748051009,1.76264,2555.5,2553.7,4.68980186]
[1729748051010,3.56045,2554.5,2554.2,0.35269]
[1729748051207,1.12925186,2554.4,2554.2,1.48194186]
[1729748051403,0.4269,2554.3,2554.2,1.48194186]
[1729748051807,4.19144605,2554.3,2554.2,1.48194186]
[1729748052115,3.76454605,2554.3,2554.2,1.48194186]
[1729748052319,3.2078,2554.5,2554.4,0.35266]
[1729748052612,3.2078,2554.5,2554.4,1.48191186]
[1729748053110,3.2078,2554.5,2554.4,0.35266]
[1729748053412,3.2078,2554.5,2554.4,1.48191186]
[1729748054004,3.612,2554.5,2554.4,1.48191186]
[1729748056015,0.4042,2554.5,2554.4,1.48191186]
[1729748057202,0.4042,2554.5,2554.4,0.35266]
[1729748057405,0.4042,2554.5,2554.4,1.48191186]
[1729748058410,3.612,2554.5,2554.4,1.48191186]
[1729748059119,0.4042,2554.5,2554.4,1.48191186]
[1729748059612,3.612,2554.5,2554.4,0.35266]
[1729748059803,4.74125186,2554.5,2554.3,1.12925186]
[1729748060007,1.95875186,2554.4,2554.3,0.35268]
[1729748060408,1.95875186,2554.4,2554.3,1.48193186]
[1729748060409,5.26388068,2554.4,2554.3,1.48193186]
[1729748065717,4.84978068,2554.4,2554.3,1.48193186]
[1729748065918,3.612,2554.5,2554.4,0.35266]
[1729748066122,3.612,2554.5,2554.4,1.48191186]
[1729748067211,3.612,2554.5,2554.4,1.12925186]
[1729748067411,4.0321,2554.5,2554.4,0.35266]
[1729748067817,4.4435,2554.5,2554.4,0.35266]
[1729748068828,4.4435,2554.5,2554.3,1.48192186]
[1729748069731,1.2357,2554.5,2554.3,1.48192186]
[1729748070030,1.2357,2554.5,2554.3,1.12925186]
[1729748070234,4.4435,2554.5,2554.4,0.35266]
[1729748070832,1.2357,2554.5,2554.4,0.35266]
[1729748072623,1.2357,2554.5,2554.3,1.12925186]
[1729748072624,2.36495186,2554.5,2554.3,0.35267]
[1729748072830,6.6582901,2554.5,2554.2,1.12925186]
[1729748073333,6.6582901,2554.5,2554.4,0.35266]
[1729748073518,5.52903824,2554.5,2554.4,1.48191186]
[1729748076432,1.2357,2554.5,2554.4,1.48191186]
[1729748081335,1.2357,2554.5,2554.4,1.60445123]
[1729748086335,1.2357,2554.5,2554.4,1.48191186]
[1729748087633,1.2357,2554.5,2554.4,0.35266]
[1729748087941,2.36495186,2554.5,2554.4,0.35266]
[1729748090647,2.36495186,2554.5,2553.9,3.2078]
[1729748090845,1.12925186,2554.2,2554.1,0.3527]
[1729748091045,1.12925186,2554.3,2554.2,0.35269]
[1729748091345,5.64127702,2554.3,2554.2,0.35269]
[1729748091644,5.64127702,2554.3,2554.1,1.48195186]
[1729748091842,5.64127702,2554.3,2554.1,1.12925186]
[1729748092039,5.64127702,2554.3,2554.2,0.35269]
[1729748092434,5.64127702,2554.3,2554.1,1.48195186]
[1729748092940,5.64127702,2554.3,2554.1,1.12925186]
[1729748093137,4.51202516,2554.3,2554.2,0.35269]
[1729748093339,5.64127702,2554.3,2554.1,0.3527]
[1729748094337,5.64127702,2554.3,2554.2,0.12255541]
[1729748094735,5.64127702,2554.3,2554.1,1.48195186]
[1729748095138,1.12925186,2554.2,2554.1,1.48195186]
[1729748095339,1.12925186,2554.2,2554.1,0.47525671]
[1729748095546,5.52671149,2554.2,2554.1,0.47525671]
[1729748095949,5.52671149,2554.2,2554.1,0.12255671]
[1729748099654,5.87940149,2554.2,2554.1,0.12255671]
[1729748099851,5.52671149,2554.2,2554.1,0.12255671]
[1729748100650,5.52671149,2554.2,2554.0,1.48196186]
[1729748100856,5.52671149,2554.2,2553.7,4.2428]
[1729748100857,5.52671149,2554.2,2554.1,1.60451313]
[1729748101245,4.39745963,2554.2,2554.1,1.60451313]
[1729748101452,4.39745963,2554.2,2554.1,1.48195186]
[1729748101648,5.63424132,2554.3,2554.1,1.48195186]
[1729748101848,1.12925186,2554.3,2554.1,1.48195186]
[1729748102252,4.50498946,2554.2,2554.1,1.48195186]
[1729748104257,4.50498946,2554.2,2554.1,1.60450626]
[1729748104454,4.32296889,2554.3,2554.2,0.35269]
[1729748104751,3.2078,2554.4,2554.2,1.25180626]
[1729748105058,3.2078,2554.4,2554.3,0.35268]
[1729748105454,7.38760233,2554.4,2554.3,0.35268]
[1729748107764,3.2078,2554.4,2554.3,5.51968065]
[1729748107952,3.2078,2554.4,2554.3,6.14618065]
[1729748108257,3.2078,2554.8,2554.4,0.35266]
[1729748108445,3.2078,2554.8,2554.7,1.48187186]
[1729748108645,7.58267725,2554.8,2554.7,1.48187186]
[1729748108855,3.2078,2554.8,2554.7,1.48187186]
[1729748109249,4.37487725,2554.8,2554.7,5.39627186]
[1729748109453,1.12925186,2555.2,2555.1,0.35257]
[1729748109650,1.12925186,2555.2,2555.1,1.48182186]
[1729748109847,5.2188648,2555.2,2555.1,1.48182186]
[1729748110657,5.2188648,2555.2,2555.1,0.35257]
[1729748111053,5.2188648,2555.2,2555.0,1.48182186]
[1729748111254,1.12925186,2555.1,2555.0,0.35257]
[1729748114457,1.12925186,2555.1,2554.8,1.12925186]
[1729748114657,1.48182186,2555.1,2554.9,0.35259]
[1729748114963,1.12925186,2555.1,2554.9,1.48184186]
[1729748115467,1.48182186,2555.1,2554.9,1.48184186]
[1729748116661,1.48182186,2555.1,2554.9,1.12925186]
[1729748117266,0.3988,2555.0,2554.9,1.48184186]
[1729748117658,0.8314,2555.0,2554.9,1.48184186]
[1729748118458,3.56036,2555.2,2554.9,1.12925186]
[1729748118459,3.2078,2555.2,2554.9,1.12925186]
[1729748118768,4.33705186,2555.2,2555.1,0.35257]
[1729748119160,4.50703544,2555.1,2555.0,1.48182186]
[1729748119356,8.8440873,2555.2,2555.0,1.48182186]
[1729748119560,0.3988,2555.1,2555.0,1.48182186]
[1729748119770,5.28938228,2555.1,2555.0,1.48182186]
[1729748120366,5.71028228,2555.1,2555.0,1.48182186]
[1729748123066,5.71028228,2555.1,2555.0,5.39542186]
[1729748123382,1.2267,2555.1,2555.0,5.39542186]
[1729748124371,1.2267,2555.1,2555.0,0.35257]
[1729748126062,3.2078,2555.2,2554.9,1.12925186]
[1729748126260,3.2078,2555.2,2555.1,1.48182186]
[1729748130289,4.33705186,2555.2,2554.8,1.12925186]
[1729748130505,1.12925186,2555.0,2554.8,1.48185186]
[1729748130801,0.4118,2554.9,2554.8,1.48185186]
[1729748130993,0.8382,2554.9,2554.8,1.48185186]
[1729748131594,0.4118,2554.9,2554.8,1.48185186]
[1729748133192,0.8349,2555.1,2554.8,1.12925186]
[1729748133398,0.4253,2555.0,2554.9,0.35259]
[1729748133587,0.4253,2555.0,2554.9,1.48184186]
[1729748140693,0.4085,2555.1,2555.0,0.35258]
[1729748140992,0.4085,2555.1,2555.0,1.48183186]
[1729748143581,0.4085,2555.1,2555.0,0.35258]
[1729748143768,0.4085,2555.1,2555.0,1.48183186]
[1729748147980,0.4085,2555.1,2554.6,2.11513299]
[1729748147981,0.4085,2555.1,2554.9,0.35259]
[1729748148478,0.4085,2555.1,2554.9,1.12925186]
[1729748148680,0.4085,2555.1,2555.0,0.35258]
[1729748149071,0.4085,2555.1,2555.0,1.48183186]
[1729748150983,3.2078,2555.4,2555.0,5.04285186]
[1729748151184,3.2078,2555.4,2555.3,1.48179186]
[1729748152278,3.6344,2555.4,2555.3,1.48179186]
[1729748156786,0.4266,2555.4,2555.3,1.48179186]
[1729748158587,4.049,2555.5,2555.4,0.35252]
[1729748158588,0.8412,2555.5,2555.4,0.35252]
[1729748158780,0.8412,2555.5,2555.4,1.48177186]
[1729748159488,0.8412,2555.5,2555.4,1.60426163]
[1729748160987,0.8412,2555.5,2555.4,1.60426283]
[1729748161784,0.8412,2555.5,2555.4,1.48177186]
[1729748161983,1.97045186,2555.5,2555.3,1.48178186]
[1729748162183,1.54005186,2555.4,2555.3,0.35253]
[1729748162378,1.54005186,2555.4,2555.3,0.12249922]
[1729748162778,1.54005186,2555.4,2555.2,1.48179186]
[1729748162987,1.48179186,2555.3,2555.0,1.48182186]
[1729748163183,1.48179186,2555.3,2555.0,1.12925186]
[1729748163184,1.12925186,2555.1,2555.0,1.12925186]
[1729748163389,1.12925186,2555.1,2555.0,1.25176329]
[1729748163586,1.12925186,2555.1,2555.0,1.60434329]
[1729748163886,0.8458,2555.1,2555.0,1.60434329]
[1729748164284,0.8458,2555.1,2555.0,1.60434559]
[1729748166990,0.8458,2555.1,2555.0,1.25176559]
[1729748167187,0.8458,2555.1,2555.0,1.60434559]
[1729748167583,0.8458,2555.1,2555.0,1.48183186]
[1729748167788,0.8458,2555.1,2555.0,1.60434605]
[1729748167987,0.8458,2555.1,2555.0,1.25176605]
[1729748168192,0.8458,2555.1,2555.0,1.60434605]
[1729748169295,0.8458,2555.1,2555.0,1.80036787]
[1729748169488,1.97505186,2555.1,2555.0,0.12251419]
[1729748169795,1.97505186,2555.1,2555.0,0.47509419]
[1729748170498,0.8458,2555.1,2555.0,1.60434605]
[1729748170689,0.8458,2555.1,2555.0,1.8003675]
[1729748171197,0.8458,2555.1,2555.0,1.60434669]
[1729748173293,4.0536,2555.1,2555.0,1.60434669]
[1729748174793,4.0536,2555.1,2555.0,1.60434962]
[1729748175196,4.0536,2555.1,2555.0,1.60434977]
[1729748176496,4.0536,2555.1,2555.0,1.48183186]
[1729748176889,4.0536,2555.1,2555.0,1.60434985]
[1729748177296,0.8458,2555.1,2555.0,1.60434985]
[1729748177492,4.0536,2555.1,2555.0,1.48183186]
[1729748178497,13.58808697,2555.1,2554.7,0.35261]
[1729748178703,1.12925186,2554.9,2554.8,0.3526]
[1729748178896,1.12925186,2554.9,2554.7,1.48186186]
[1729748179097,1.12925186,2554.9,2554.3,1.005]
[1729748179098,4.33705186,2554.8,2554.3,1.005]
[1729748179292,0.8306,2554.7,2554.6,1.48189186]
[1729748182102,4.0384,2554.7,2554.6,1.48189186]
[1729748187304,0.8306,2554.7,2554.6,1.48189186]
[1729748191803,4.33705186,2554.9,2554.6,1.12925186]
[1729748192000,4.2417,2554.9,2554.8,1.48186186]
[1729748192303,3.2078,2554.9,2554.8,1.48186186]
[1729748194111,0.4299,2555.0,2554.9,0.35259]
[1729748194406,3.6377,2555.0,2554.9,1.48184186]
[1729748195098,1.1935,2555.1,2554.9,1.12925186]
[1729748195407,1.1935,2555.1,2555.0,0.35258]
[1729748195610,1.1935,2555.1,2555.0,1.48183186]
[1729748197906,0.555,2555.2,2555.1,0.35257]
[1729748198103,0.555,2555.2,2555.1,1.48182186]
[1729748198304,4.87448319,2555.2,2555.1,1.48182186]
[1729748202900,3.7603,2555.3,2555.1,2.25850372]
[1729748202901,3.2078,2555.3,2555.1,2.25850372]
[1729748203107,3.2078,2555.3,2555.2,2.68910186]
[1729748203709,3.2078,2555.3,2555.2,2.08650186]
[1729748206111,1.7029,2555.5,2555.2,2.08650186]
[1729748206318,3.2078,2555.3,2555.2,2.08650186]
[1729748207015,3.2078,2555.3,2555.2,1.48180186]
[1729748207617,3.18467186,2555.5,2555.2,1.48180186]
[1729748208022,3.2078,2555.3,2555.2,1.48180186]
[1729748208317,4.68959186,2555.3,2555.1,0.35256]
[1729748208512,0.5637,2555.2,2555.0,1.12925186]
[1729748208713,2.25445186,2555.1,2554.9,1.48184186]
[1729748208918,6.41470147,2555.1,2554.9,1.48184186]
[1729748209120,6.41470147,2555.1,2554.9,1.12925186]
[1729748209516,6.41470147,2555.1,2554.9,1.48184186]
[1729748211421,6.41470147,2555.1,2555.0,0.35258]
[1729748211721,5.28544961,2555.1,2555.0,1.48183186]
[1729748213216,1.1252,2555.1,2555.0,1.48183186]
[1729748214418,1.1252,2555.1,2555.0,1.25176406]
[1729748214621,2.25445186,2555.1,2555.0,0.4750922]
[1729748215014,2.25445186,2555.1,2555.0,0.1225122]
[1729748215316,2.25445186,2555.1,2554.9,1.48184186]
[1729748216722,2.25445186,2555.1,2555.0,0.47509419]
[1729748216922,1.1252,2555.1,2555.0,0.47509419]
[1729748218219,1.1252,2555.1,2555.0,1.60434605]
[1729748220526,1.1252,2555.1,2555.0,0.47509419]
[1729748222020,1.1252,2555.1,2555.0,0.35258]
[1729748223524,2.25445186,2555.1,2554.3,3.2590208]
[1729748223719,1.12925186,2554.8,2554.7,0.35261]
[1729748223918,1.12925186,2554.8,2554.7,1.48186186]
[1729748224824,1.12925186,2554.8,2554.6,1.12925186]
[1729748225027,2.25655186,2554.7,2554.5,0.35264]
[1729748225329,5.72401609,2554.6,2554.2,0.35268]
[1729748225518,5.72401609,2554.6,2554.3,1.12925186]
[1729748225519,1.12925186,2554.4,2554.3,1.12925186]
[1729748225720,0.5588,2554.5,2554.3,1.48193186]
[1729748225920,4.09431814,2554.4,2554.3,1.12925186]
[1729748226116,0.5588,2554.5,2554.3,1.48193186]
[1729748226321,8.25225186,2554.4,2553.6,1.02638688]
[1729748226627,1.12925186,2554.2,2554.0,1.48196186]
[1729748226932,4.97896826,2554.1,2554.0,1.48196186]
[1729748227224,5.57036826,2554.1,2554.0,1.48196186]
[1729748227622,5.57036826,2554.1,2554.0,1.12925186]
[1729748227823,6.69962012,2554.1,2553.9,1.12925186]
[1729748228032,6.69962012,2554.1,2554.0,0.35272]
[1729748228527,6.69962012,2554.1,2554.0,1.48197186]
[1729748228528,5.57036826,2554.1,2554.0,1.48197186]
[1729748228933,5.57036826,2554.1,2554.0,1.12925186]
[1729748229532,6.12856826,2554.1,2554.0,1.12925186]
[1729748229728,6.12856826,2554.1,2554.0,1.48197186]
[1729748230932,5.57036826,2554.1,2554.0,1.48197186]
[1729748231134,3.2078,2554.3,2554.0,1.12925186]
[1729748231326,3.2078,2554.3,2554.2,1.48194186]
[1729748235233,0.5836,2554.4,2554.2,1.12925186]
[1729748235434,3.7914,2554.4,2554.3,1.48193186]
[1729748238134,3.7914,2554.4,2553.8,1.88686]
[1729748238135,9.32957169,2554.4,2554.1,1.12925186]
[1729748238331,9.68223169,2554.4,2554.1,1.48194186]
[1729748238538,1.12925186,2554.3,2554.0,1.12925186]
[1729748238839,6.39622951,2554.2,2553.9,1.12925186]
[1729748239135,1.68315186,2554.2,2554.0,1.12925186]
[1729748239330,0.6043,2554.1,2554.0,1.12925186]
[1729748239634,4.96468765,2554.1,2554.0,1.12925186]
[1729748242335,4.96468765,2554.1,2554.0,1.48197186]
[1729748245039,4.36038765,2554.1,2554.0,1.48197186]
[1729748245736,4.36038765,2554.1,2554.0,5.39717186]
[1729748246034,3.7553,2554.3,2554.2,0.35269]
[1729748246335,3.7553,2554.3,2554.2,1.48194186]
[1729748249033,3.2078,2554.3,2554.2,1.48194186]
[1729748249237,4.33705186,2554.9,2554.2,6.52639372]
[1729748249425,4.33705186,2554.9,2554.7,1.48186186]
[1729748249630,4.91619636,2554.8,2554.7,0.35261]
[1729748249834,5.46729636,2554.8,2554.7,0.35261]
[1729748253533,4.3380445,2554.8,2554.7,1.48186186]
[1729748253732,3.2078,2554.9,2554.7,1.12925186]
[1729748253932,3.2078,2554.9,2554.8,0.35261]
[1729748254133,4.33705186,2554.9,2554.8,0.35261]
[1729748256135,1.12925186,2554.9,2554.8,0.35261]
[1729748256335,1.1939,2555.0,2554.9,0.35259]
[1729748256633,6.45453075,2555.0,2554.9,0.35259]
[1729748259338,6.45453075,2555.0,2554.7,0.35262]
[1729748259532,1.12925186,2554.8,2554.7,0.35262]
[1729748261547,1.12925186,2554.8,2554.6,1.48188186]
[1729748261837,1.12925186,2554.8,2554.6,1.12925186]
[1729748262537,1.12925186,2554.8,2554.6,1.48188186]
[1729748262742,1.12925186,2554.8,2554.7,0.35262]
[1729748264239,1.12925186,2554.8,2554.6,1.12925186]
[1729748264442,1.12925186,2554.8,2554.6,1.48188186]
[1729748270439,0.5906,2554.7,2554.6,1.48188186]
[1729748271037,1.1837,2554.7,2554.6,1.48188186]
[1729748272344,3.7999,2555.0,2554.6,1.12925186]
[1729748272636,4.92915186,2555.0,2554.8,1.12925186]
[1729748272833,4.92915186,2555.0,2554.9,0.35259]
[1729748273541,4.92915186,2555.0,2554.8,1.12925186]
[1729748273742,4.92915186,2555.0,2554.8,1.48185186]
[1729748274841,4.92915186,2555.0,2554.9,0.35259]
[1729748275746,3.2078,2555.0,2554.9,1.48184186]
[1729748277044,3.2078,2555.0,2554.9,1.60435814]
[1729748277233,3.2078,2555.0,2554.9,1.60435752]
[1729748278732,1.12925186,2555.3,2555.2,0.35255]
[1729748278946,4.33705186,2555.3,2555.2,0.35255]
[1729748279147,8.79821521,2555.3,2555.2,0.35255]
[1729748279547,8.79821521,2555.3,2555.0,1.12925186]
[1729748279747,1.12925186,2555.2,2555.0,0.35257]
[1729748279948,2.25635186,2555.1,2555.0,0.35257]
[1729748280150,6.55479239,2555.1,2554.9,0.35259]
[1729748280349,1.69845186,2555.0,2554.8,0.3526]
[1729748280546,1.12925186,2554.9,2554.8,0.3526]
[1729748281749,5.23694947,2554.9,2554.8,0.3526]
[1729748282252,5.23694947,2554.9,2554.6,1.12925186]
[1729748282442,5.23694947,2554.9,2554.7,0.35261]
[1729748282443,1.12925186,2554.8,2554.7,0.35261]
[1729748286056,1.12925186,2554.9,2554.7,1.12925186]
[1729748286349,5.60878323,2554.9,2554.8,0.35261]
[1729748288949,4.47953137,2554.9,2554.8,1.48186186]
[1729748289267,0.5692,2555.0,2554.9,0.35259]
[1729748289451,0.5692,2555.0,2554.9,1.48184186]
[1729748289948,0.5692,2555.0,2554.9,1.6043602]
[1729748290751,4.3349,2555.1,2555.0,0.35258]
[1729748290958,4.3349,2555.1,2555.0,0.47509834]
[1729748291352,4.3349,2555.1,2555.0,1.6043502]
[1729748291557,4.3349,2555.1,2555.0,1.48183186]
[1729748291751,4.3349,2555.1,2555.0,1.60434616]
[1729748292057,4.3349,2555.1,2555.0,0.4750943]
[1729748293556,4.3349,2555.1,2555.0,1.60434616]
[1729748293753,3.2078,2555.1,2555.0,1.8003675]
[1729748293955,3.2078,2555.1,2555.0,2.41292527]
[1729748295559,3.2078,2555.1,2555.0,2.09438468]
[1729748295757,3.2078,2555.1,2555.0,2.60892922]
[1729748296356,0.5446,2555.2,2555.1,0.35257]
[1729748296551,0.5446,2555.2,2555.1,2.19393244]
[1729748296755,0.5446,2555.2,2555.1,2.07142186]
[1729748297460,1.67385186,2555.2,2555.1,2.07142186]
[1729748298863,1.67385186,2555.2,2555.1,1.48182186]
[1729748299157,1.67385186,2555.2,2555.1,0.35257]
[1729748304971,1.67385186,2555.2,2555.1,0.47508141]
[1729748305173,1.67385186,2555.2,2555.1,0.4750805]
[1729748306562,1.67385186,2555.2,2555.1,0.35257]
[1729748307262,0.5446,2555.2,2555.1,0.35257]
[1729748308374,0.5446,2555.2,2555.1,0.47508591]
[1729748313674,0.5446,2555.2,2555.1,0.4750752]
[1729748314577,1.67385186,2555.2,2555.1,0.4750752]
[1729748317079,1.67385186,2555.2,2555.1,0.47507608]
[1729748319373,1.67385186,2555.2,2555.1,0.35257]
[1729748321183,0.5446,2555.2,2555.1,0.35257]
[1729748325279,0.5446,2555.2,2555.1,1.48182186]
[1729748327286,0.5446,2555.2,2555.1,0.35257]
[1729748327593,0.5446,2555.2,2555.1,0.47507494]
[1729748328690,0.5446,2555.2,2555.1,0.35257]
[1729748329084,0.5446,2555.2,2555.1,0.4750735]
[1729748329287,0.5446,2555.2,2555.1,0.6710791]
[1729748329483,4.33705186,2555.4,2555.1,1.44776096]
[1729748329687,4.92475186,2555.4,2555.3,0.35254]
[1729748331496,4.92475186,2555.4,2555.3,0.47504502]
[1729748331688,4.92475186,2555.4,2555.3,0.35254]
[1729748332496,4.92475186,2555.4,2555.3,0.47504733]
[1729748332688,1.71695186,2555.4,2555.3,0.47504733]
[1729748332887,4.92475186,2555.4,2555.3,0.47504733]
[1729748333492,1.71695186,2555.4,2555.3,0.47504733]
[1729748333698,4.92475186,2555.4,2555.3,0.47504733]
[1729748334505,4.92475186,2555.4,2555.3,0.35254]
[1729748335497,1.71695186,2555.4,2555.3,0.35254]
[1729748335703,4.92475186,2555.4,2555.3,0.35254]
[1729748336099,1.71695186,2555.4,2555.3,0.35254]
[1729748336301,4.92475186,2555.4,2554.9,2.25575186]
[1729748336603,1.12925186,2555.2,2555.1,0.35256]
[1729748339204,1.12925186,2555.2,2555.1,0.47507212]
[1729748341403,1.12925186,2555.2,2555.1,0.12251212]
[1729748341802,1.12925186,2555.2,2555.0,0.35257]
[1729748342006,2.79185186,2555.1,2555.0,0.35257]
[1729748342207,2.79185186,2555.1,2555.0,0.4750833]
[1729748342408,2.79185186,2555.1,2555.0,1.2836708]
[1729748342912,2.79185186,2555.1,2555.0,1.28366881]
[1729748346703,2.79185186,2555.1,2555.0,0.6711038]
[1729748346904,2.79185186,2555.1,2555.0,1.28366768]
[1729748347207,2.79185186,2555.1,2555.0,1.28366619]
[1729748350404,2.79185186,2555.1,2555.0,2.41291805]
[1729748350405,1.6626,2555.1,2555.0,2.41291805]
[1729748350608,1.6626,2555.1,2555.0,1.80035476]
[1729748350813,1.6626,2555.1,2555.0,2.41290025]
[1729748353315,1.116,2555.1,2555.0,2.41290025]
[1729748354221,4.93685186,2555.4,2555.0,2.06033025]
[1729748354516,6.66050831,2555.3,2555.2,0.35254]
[1729748354711,6.66050831,2555.3,2555.2,1.28358424]
[1729748355111,5.53125645,2555.3,2555.2,1.28358424]
[1729748355312,6.66050831,2555.3,2555.2,0.31851526]
[1729748355616,6.71416887,2555.3,2555.2,0.67106526]
[1729748357610,6.71416887,2555.3,2555.2,0.47505587]
[1729748358111,5.58491701,2555.3,2555.2,0.47505587]
[1729748358314,5.58491701,2555.3,2555.2,1.60430773]
[1729748358518,5.58491701,2555.3,2555.2,1.48180186]
[1729748359619,5.58491701,2555.3,2555.2,1.60431102]
[1729748361017,5.58491701,2555.3,2555.2,0.47505916]
[1729748361219,5.58491701,2555.3,2555.2,0.35255]
[1729748361220,6.71416887,2555.3,2555.2,0.35255]
[1729748361813,7.06670887,2555.3,2555.2,0.35255]
[1729748362015,6.71416887,2555.3,2555.2,0.35255]
[1729748362218,5.58491701,2555.3,2555.2,0.35255]
[1729748362418,5.58491701,2555.3,2555.2,1.48180186]
[1729748362618,5.58491701,2555.3,2555.2,1.60430567]
[1729748364223,5.58491701,2555.3,2555.2,2.21682415]
[1729748364815,5.58491701,2555.3,2555.2,1.48180186]
[1729748365016,5.58491701,2555.3,2555.2,2.41283005]
[1729748368116,5.58491701,2555.3,2555.2,1.8003115]
[1729748368721,1.20416056,2555.3,2555.2,1.8003115]
[1729748369821,1.20416056,2555.3,2555.2,1.48180186]
[1729748370123,1.20416056,2555.3,2555.2,1.800314]
[1729748370625,1.20416056,2555.3,2555.2,2.41282617]
[1729748371121,1.20416056,2555.3,2555.2,1.800314]
[1729748371317,1.20416056,2555.3,2555.2,2.41282615]
[1729748371918,1.20416056,2555.3,2555.2,2.21681868]
[1729748372212,1.20416056,2555.3,2555.2,1.60430653]
[1729748373029,0.61216056,2555.3,2555.2,1.60430653]
[1729748373323,0.05366056,2555.3,2555.2,2.16250653]
[1729748373928,0.05366056,2555.3,2555.2,2.16250097]
[1729748375030,0.05366056,2555.3,2555.2,6.27209385]
[1729748375330,0.05366056,2555.3,2555.2,6.83369385]
[1729748377225,0.05366056,2555.3,2555.2,7.44613995]
[1729748377529,0.05366056,2555.3,2555.2,7.44612472]
[1729748379231,0.05366056,2555.3,2555.2,8.42604881]
[1729748379532,0.05366056,2555.3,2555.2,9.94459001]
[1729748379923,0.05366056,2555.3,2555.2,10.17218731]
[1729748381119,0.05366056,2555.3,2555.2,8.26134036]
[1729748381334,0.05366056,2555.3,2555.2,10.17205496]
[1729748382434,0.05366056,2555.3,2555.2,8.65351782]
[1729748383136,0.05366056,2555.3,2555.2,11.74151782]
[1729748383321,0.05366056,2555.3,2555.2,11.35646209]
[1729748383833,0.05366056,2555.3,2555.2,12.33635208]
[1729748385037,0.05366056,2555.3,2555.2,10.42559916]
[1729748385237,0.05366056,2555.3,2555.2,11.45420844]
[1729748385432,0.05366056,2555.3,2555.2,10.42559916]
[1729748386141,0.05366056,2555.3,2555.2,12.01786448]
[1729748386329,0.05366056,2555.3,2555.2,12.3363175]
[1729748387136,0.05366056,2555.3,2555.2,11.35646192]
[1729748387337,0.05366056,2555.3,2555.2,10.74405218]
[1729748391041,0.05366056,2555.3,2555.2,7.53625218]
[1729748391444,0.05366056,2555.3,2555.2,10.74405218]
[1729748392437,0.05366056,2555.3,2555.2,7.53625218]
[1729748392637,0.05366056,2555.3,2555.2,10.74405218]
[1729748392839,0.05366056,2555.3,2555.2,10.74404636]
[1729748394243,0.05366056,2555.3,2555.2,11.35645655]
[1729748398143,0.05366056,2555.3,2555.2,8.14865655]
[1729748398448,0.05366056,2555.3,2555.2,11.35645655]
[1729748399944,2.28885186,2555.7,2555.2,1.44769906]
[1729748400141,3.2078,2555.6,2555.4,1.12925186]
[1729748400336,7.28054596,2555.6,2555.4,1.12925186]
[1729748400938,7.28054596,2555.6,2555.4,1.48177186]
[1729748401745,7.28054596,2555.6,2555.4,1.12925186]
[1729748401957,7.28054596,2555.6,2555.1,1.0]
[1729748402251,8.40979782,2555.6,2555.3,1.12925186]
[1729748404053,8.76229782,2555.6,2555.3,1.12925186]
[1729748404255,8.40979782,2555.6,2555.3,1.12925186]
[1729748404446,8.76229782,2555.6,2555.3,1.12925186]